Workbook

Sheet CILJI
B1: =TODAY() -> 2022-12-13 | C1: CILJI | J1: Telovadba | K1: Prehrana
B2: DATUM ZAČETKA | C2: DNEVNIH PREHRANE IN TELOVADBE
B3: =DatumZačetka+121 -> 2023-04-13 | C3: ANALIZA PREHRANE
B4: DATUM KONCA
B5: 220.00
B6: ZAČETNA TEŽA
B7: 180.00 | C7: ANALIZA TELOVADBE
B8: KONČNA TEŽA
B9: =ZačetnaTeža-KončnaTeža -> 40
B10: ŽELENA IZGUBA
B11: =DatumKonca-DatumZačetka -> 121
B12: DNEVI ZA IZGUBO
B13: =ŽelenaTeža/B11 -> 0.33
B14: IZGUBA NA DAN

Sheet PREHRANA
B1: PREHRANA | G1: Cilji | H1: Telovadba
B2: =Podnaslov -> DNEVNIH PREHRANE IN TELOVADBE
B3: DATUM | C3: ČAS | D3: OPIS | E3: KALORIJE | F3: OGLJIKOVI HIDRATI | G3: BELJAKOVINE | H3: MAŠČOBE | I3: OPOMBE
B4: =DatumZačetka -> 2022-12-13 | C4: 07:00:00 | D4: Kava | E4: 1 | F4: 0 | G4: 0 | H4: 0 | I4: Jutranja kava
B5: =DatumZačetka -> 2022-12-13 | C5: 08:00:00 | D5: Rogljič | E5: 10 | F5: 10 | G5: 2 | H5: 10 | I5: Lahek zajtrk
B6: =DatumZačetka -> 2022-12-13 | C6: 12:00:00 | D6: Kosilo | E6: 283 | F6: 46 | G6: 18 | H6: 4 | I6: Sendvič s puranom
B7: =DatumZačetka -> 2022-12-13 | C7: 19:00:00 | D7: Večerja | E7: 500 | F7: 42 | G7: 35 | H7: 25 | I7: Testenine s sirom
B8: =DatumZačetka+1 -> 2022-12-14 | C8: 07:00:00 | D8: Kava | E8: 1 | F8: 0 | G8: 0 | H8: 0 | I8: Jutranja kava
B9: =DatumZačetka+1 -> 2022-12-14 | C9: 08:00:00 | D9: Prepečenec | E9: 10 | F9: 10 | G9: 2 | H9: 10 | I9: Lahek zajtrk
B10: =DatumZačetka+1 -> 2022-12-14 | C10: 12:00:00 | D10: Kosilo | E10: 189 | F10: 26 | G10: 3 | H10: 8 | I10: Sendvič
B11: =DatumZačetka+1 -> 2022-12-14 | C11: 19:00:00 | D11: Večerja | E11: 477 | F11: 62 | G11: 14 | H11: 21 | I11: Večerja
B12: =DatumZačetka+2 -> 2022-12-15 | C12: 07:00:00 | D12: Kava | E12: 1 | F12: 0 | G12: 0 | H12: 0 | I12: Jutranja kava
B13: =DatumZačetka+2 -> 2022-12-15 | C13: 08:00:00 | D13: Rogljič | E13: 245 | F13: 48 | G13: 10 | H13: 2 | I13: Lahek zajtrk
B14: =DatumZačetka+2 -> 2022-12-15 | C14: 12:00:00 | D14: Kosilo | E14: 247 | F14: 11 | G14: 43 | H14: 5 | I14: Solata
B15: =DatumZačetka+2 -> 2022-12-15 | C15: 19:00:00 | D15: Večerja | E15: 456 | F15: 64 | G15: 32 | H15: 22 | I15: Večerja
B16: =DatumZačetka+3 -> 2022-12-16 | C16: 07:00:00 | D16: Prepečenec | E16: 10 | F16: 10 | G16: 2 | H16: 10 | I16: Lahek zajtrk
B17: =DatumZačetka+3 -> 2022-12-16 | C17: 10:00:00 | D17: Kava | E17: 135 | F17: 12 | G17: 9 | H17: 6 | I17: Kava z mlekom
B18: =DatumZačetka+3 -> 2022-12-16 | C18: 12:15:00 | D18: Kosilo | E18: 184 | F18: 7 | G18: 5 | H18: 15 | I18: Solata
B19: =DatumZačetka+5 -> 2022-12-18 | C19: 19:00:00 | D19: Večerja | E19: 477 | F19: 62 | G19: 14 | H19: 21 | I19: Večerja

Sheet TELOVADBA
B1: TELOVADBA | F1: Prehrana | G1: Cilji
B2: =Podnaslov -> DNEVNIH PREHRANE IN TELOVADBE
B3: DATUM | C3: TRAJANJE (MIN) | D3: ŠTEVILO PORABLJENIH KALORIJ | E3: OPOMBE
B4: =DatumZačetka+4 -> 2022-12-17 | C4: 30 | D4: 120 | E4: Vaja na tekalni stezi
B5: =B4+1 -> 2022-12-18 | C5: 60 | D5: 180 | E5: Nezahtevna aerobna vadba
B6: =B5+1 -> 2022-12-19 | C6: 60 | D6: 350 | E6: Izredno zahtevna vadba
B7: 2022-12-20 | C7: 30 | D7: 150 | E7: Vaja na tekalni stezi
B8: 2022-12-21 | C8: 25 | D8: 125 | E8: Tek
B9: 2022-12-22 | C9: 20 | D9: 285 | E9: Vaja na tekalni stezi
B10: 2022-12-23 | C10: 40 | D10: 205 | E10: Tek
B11: 2022-12-24 | C11: 30 | D11: 335 | E11: Tek
B12: 2022-12-25 | C12: 40 | D12: 175 | E12: Tek
B13: 2022-12-26 | C13: 45 | D13: 325 | E13: Vaja na tekalni stezi
B14: 2022-12-27 | C14: 40 | D14: 270 | E14: Tek
B15: 2022-12-28 | C15: 20 | D15: 295 | E15: Vaja na tekalni stezi
B16: 2022-12-29 | C16: 45 | D16: 350 | E16: Tek
B17: 2022-12-30 | C17: 35 | D17: 320 | E17: Tek
B18: 2022-12-31 | C18: 40 | D18: 290 | E18: Tek
B19: =B18+1 -> 2023-01-01 | C19: 25 | D19: 265 | E19: Vaja na tekalni stezi
B20: 2023-01-02 | C20: 20 | D20: 195 | E20: Tek

Sheet Izračuni grafikona (hidden)
B2: PODATKI ANALIZE PREHRANE NA DIAGRAMU
B4: Začetna vrstica | C4: =ROW(Prehrana[[#Headers],[DATUM]])+1 -> 4 | D4: DATUM | E4: DAN | F4: MAŠČOBE | G4: BELJAKOVINE | H4: OGLJIKOVI HIDRATI | I4: KALORIJE | J4: Št.
B5: Zadnji vnos o prehrani | C5: =MATCH(9.99E+307,Prehrana[DATUM])+PrehranaVrsticaZačetek-1 -> 19 | D5: =IFERROR(IF(INDEX(Prehrana[],PrehranaZadnjiKonec-PrehranaVrsticaZačetek-J5,1)<>"",INDEX(Prehrana[],PrehranaZadnjiKonec-PrehranaVrsticaZačetek-J5,1),""),"") -> 2022-12-13 | E5: =UPPER(TEXT(D5,"DDD")) -> TOR | F5: =IFERROR((IF(INDEX(Prehrana[],PrehranaZadnjiKonec-PrehranaVrsticaZačetek-J5,1)<>"",INDEX(Prehrana[],PrehranaZadnjiKonec-PrehranaVrsticaZačetek-J5,7),NA())),NA()) -> 3.5 | G5: =IFERROR((IF(INDEX(Prehrana[],PrehranaZadnjiKonec-PrehranaVrsticaZačetek-J5,1)<>"",INDEX(Prehrana[],PrehranaZadnjiKonec-PrehranaVrsticaZačetek-J5,6),NA())),NA()) -> 18 | H5: =IFERROR((IF(INDEX(Prehrana[],PrehranaZadnjiKonec-PrehranaVrsticaZačetek-J5,1)<>"",INDEX(Prehrana[],PrehranaZadnjiKonec-PrehranaVrsticaZačetek-J5,5),NA())),NA()) -> 46 | I5: =IFERROR((IF(INDEX(Prehrana[],PrehranaZadnjiKonec-PrehranaVrsticaZačetek-J5,1)<>"",INDEX(Prehrana[],PrehranaZadnjiKonec-PrehranaVrsticaZačetek-J5,4),NA())),NA()) -> 283 | J5: 12
D6: =IFERROR(IF(INDEX(Prehrana[],PrehranaZadnjiKonec-PrehranaVrsticaZačetek-J6,1)<>"",INDEX(Prehrana[],PrehranaZadnjiKonec-PrehranaVrsticaZačetek-J6,1),""),"") -> 2022-12-13 | E6: TOR | F6: =IFERROR((IF(INDEX(Prehrana[],PrehranaZadnjiKonec-PrehranaVrsticaZačetek-J6,1)<>"",INDEX(Prehrana[],PrehranaZadnjiKonec-PrehranaVrsticaZačetek-J6,7),NA())),NA()) -> 25 | G6: =IFERROR((IF(INDEX(Prehrana[],PrehranaZadnjiKonec-PrehranaVrsticaZačetek-J6,1)<>"",INDEX(Prehrana[],PrehranaZadnjiKonec-PrehranaVrsticaZačetek-J6,6),NA())),NA()) -> 35 | H6: =IFERROR((IF(INDEX(Prehrana[],PrehranaZadnjiKonec-PrehranaVrsticaZačetek-J6,1)<>"",INDEX(Prehrana[],PrehranaZadnjiKonec-PrehranaVrsticaZačetek-J6,5),NA())),NA()) -> 42 | I6: =IFERROR((IF(INDEX(Prehrana[],PrehranaZadnjiKonec-PrehranaVrsticaZačetek-J6,1)<>"",INDEX(Prehrana[],PrehranaZadnjiKonec-PrehranaVrsticaZačetek-J6,4),NA())),NA()) -> 500 | J6: 11
D7: =IFERROR(IF(INDEX(Prehrana[],PrehranaZadnjiKonec-PrehranaVrsticaZačetek-J7,1)<>"",INDEX(Prehrana[],PrehranaZadnjiKonec-PrehranaVrsticaZačetek-J7,1),""),"") -> 2022-12-14 | E7: SRE | F7: =IFERROR((IF(INDEX(Prehrana[],PrehranaZadnjiKonec-PrehranaVrsticaZačetek-J7,1)<>"",INDEX(Prehrana[],PrehranaZadnjiKonec-PrehranaVrsticaZačetek-J7,7),NA())),NA()) -> 0 | G7: =IFERROR((IF(INDEX(Prehrana[],PrehranaZadnjiKonec-PrehranaVrsticaZačetek-J7,1)<>"",INDEX(Prehrana[],PrehranaZadnjiKonec-PrehranaVrsticaZačetek-J7,6),NA())),NA()) -> 0 | H7: =IFERROR((IF(INDEX(Prehrana[],PrehranaZadnjiKonec-PrehranaVrsticaZačetek-J7,1)<>"",INDEX(Prehrana[],PrehranaZadnjiKonec-PrehranaVrsticaZačetek-J7,5),NA())),NA()) -> 0 | I7: =IFERROR((IF(INDEX(Prehrana[],PrehranaZadnjiKonec-PrehranaVrsticaZačetek-J7,1)<>"",INDEX(Prehrana[],PrehranaZadnjiKonec-PrehranaVrsticaZačetek-J7,4),NA())),NA()) -> 1 | J7: 10
D8: =IFERROR(IF(INDEX(Prehrana[],PrehranaZadnjiKonec-PrehranaVrsticaZačetek-J8,1)<>"",INDEX(Prehrana[],PrehranaZadnjiKonec-PrehranaVrsticaZačetek-J8,1),""),"") -> 2022-12-14 | E8: SRE | F8: =IFERROR((IF(INDEX(Prehrana[],PrehranaZadnjiKonec-PrehranaVrsticaZačetek-J8,1)<>"",INDEX(Prehrana[],PrehranaZadnjiKonec-PrehranaVrsticaZačetek-J8,7),NA())),NA()) -> 10 | G8: =IFERROR((IF(INDEX(Prehrana[],PrehranaZadnjiKonec-PrehranaVrsticaZačetek-J8,1)<>"",INDEX(Prehrana[],PrehranaZadnjiKonec-PrehranaVrsticaZačetek-J8,6),NA())),NA()) -> 2 | H8: =IFERROR((IF(INDEX(Prehrana[],PrehranaZadnjiKonec-PrehranaVrsticaZačetek-J8,1)<>"",INDEX(Prehrana[],PrehranaZadnjiKonec-PrehranaVrsticaZačetek-J8,5),NA())),NA()) -> 10 | I8: =IFERROR((IF(INDEX(Prehrana[],PrehranaZadnjiKonec-PrehranaVrsticaZačetek-J8,1)<>"",INDEX(Prehrana[],PrehranaZadnjiKonec-PrehranaVrsticaZačetek-J8,4),NA())),NA()) -> 10 | J8: 9
D9: =IFERROR(IF(INDEX(Prehrana[],PrehranaZadnjiKonec-PrehranaVrsticaZačetek-J9,1)<>"",INDEX(Prehrana[],PrehranaZadnjiKonec-PrehranaVrsticaZačetek-J9,1),""),"") -> 2022-12-14 | E9: SRE | F9: =IFERROR((IF(INDEX(Prehrana[],PrehranaZadnjiKonec-PrehranaVrsticaZačetek-J9,1)<>"",INDEX(Prehrana[],PrehranaZadnjiKonec-PrehranaVrsticaZačetek-J9,7),NA())),NA()) -> 8 | G9: =IFERROR((IF(INDEX(Prehrana[],PrehranaZadnjiKonec-PrehranaVrsticaZačetek-J9,1)<>"",INDEX(Prehrana[],PrehranaZadnjiKonec-PrehranaVrsticaZačetek-J9,6),NA())),NA()) -> 3 | H9: =IFERROR((IF(INDEX(Prehrana[],PrehranaZadnjiKonec-PrehranaVrsticaZačetek-J9,1)<>"",INDEX(Prehrana[],PrehranaZadnjiKonec-PrehranaVrsticaZačetek-J9,5),NA())),NA()) -> 26 | I9: =IFERROR((IF(INDEX(Prehrana[],PrehranaZadnjiKonec-PrehranaVrsticaZačetek-J9,1)<>"",INDEX(Prehrana[],PrehranaZadnjiKonec-PrehranaVrsticaZačetek-J9,4),NA())),NA()) -> 189 | J9: 8
D10: =IFERROR(IF(INDEX(Prehrana[],PrehranaZadnjiKonec-PrehranaVrsticaZačetek-J10,1)<>"",INDEX(Prehrana[],PrehranaZadnjiKonec-PrehranaVrsticaZačetek-J10,1),""),"") -> 2022-12-14 | E10: SRE | F10: =IFERROR((IF(INDEX(Prehrana[],PrehranaZadnjiKonec-PrehranaVrsticaZačetek-J10,1)<>"",INDEX(Prehrana[],PrehranaZadnjiKonec-PrehranaVrsticaZačetek-J10,7),NA())),NA()) -> 21 | G10: =IFERROR((IF(INDEX(Prehrana[],PrehranaZadnjiKonec-PrehranaVrsticaZačetek-J10,1)<>"",INDEX(Prehrana[],PrehranaZadnjiKonec-PrehranaVrsticaZačetek-J10,6),NA())),NA()) -> 13.5 | H10: =IFERROR((IF(INDEX(Prehrana[],PrehranaZadnjiKonec-PrehranaVrsticaZačetek-J10,1)<>"",INDEX(Prehrana[],PrehranaZadnjiKonec-PrehranaVrsticaZačetek-J10,5),NA())),NA()) -> 62 | I10: =IFERROR((IF(INDEX(Prehrana[],PrehranaZadnjiKonec-PrehranaVrsticaZačetek-J10,1)<>"",INDEX(Prehrana[],PrehranaZadnjiKonec-PrehranaVrsticaZačetek-J10,4),NA())),NA()) -> 477 | J10: 7
D11: =IFERROR(IF(INDEX(Prehrana[],PrehranaZadnjiKonec-PrehranaVrsticaZačetek-J11,1)<>"",INDEX(Prehrana[],PrehranaZadnjiKonec-PrehranaVrsticaZačetek-J11,1),""),"") -> 2022-12-15 | E11: ČET | F11: =IFERROR((IF(INDEX(Prehrana[],PrehranaZadnjiKonec-PrehranaVrsticaZačetek-J11,1)<>"",INDEX(Prehrana[],PrehranaZadnjiKonec-PrehranaVrsticaZačetek-J11,7),NA())),NA()) -> 0 | G11: =IFERROR((IF(INDEX(Prehrana[],PrehranaZadnjiKonec-PrehranaVrsticaZačetek-J11,1)<>"",INDEX(Prehrana[],PrehranaZadnjiKonec-PrehranaVrsticaZačetek-J11,6),NA())),NA()) -> 0 | H11: =IFERROR((IF(INDEX(Prehrana[],PrehranaZadnjiKonec-PrehranaVrsticaZačetek-J11,1)<>"",INDEX(Prehrana[],PrehranaZadnjiKonec-PrehranaVrsticaZačetek-J11,5),NA())),NA()) -> 0 | I11: =IFERROR((IF(INDEX(Prehrana[],PrehranaZadnjiKonec-PrehranaVrsticaZačetek-J11,1)<>"",INDEX(Prehrana[],PrehranaZadnjiKonec-PrehranaVrsticaZačetek-J11,4),NA())),NA()) -> 1 | J11: 6
D12: =IFERROR(IF(INDEX(Prehrana[],PrehranaZadnjiKonec-PrehranaVrsticaZačetek-J12,1)<>"",INDEX(Prehrana[],PrehranaZadnjiKonec-PrehranaVrsticaZačetek-J12,1),""),"") -> 2022-12-15 | E12: ČET | F12: =IFERROR((IF(INDEX(Prehrana[],PrehranaZadnjiKonec-PrehranaVrsticaZačetek-J12,1)<>"",INDEX(Prehrana[],PrehranaZadnjiKonec-PrehranaVrsticaZačetek-J12,7),NA())),NA()) -> 1.5 | G12: =IFERROR((IF(INDEX(Prehrana[],PrehranaZadnjiKonec-PrehranaVrsticaZačetek-J12,1)<>"",INDEX(Prehrana[],PrehranaZadnjiKonec-PrehranaVrsticaZačetek-J12,6),NA())),NA()) -> 10 | H12: =IFERROR((IF(INDEX(Prehrana[],PrehranaZadnjiKonec-PrehranaVrsticaZačetek-J12,1)<>"",INDEX(Prehrana[],PrehranaZadnjiKonec-PrehranaVrsticaZačetek-J12,5),NA())),NA()) -> 48 | I12: =IFERROR((IF(INDEX(Prehrana[],PrehranaZadnjiKonec-PrehranaVrsticaZačetek-J12,1)<>"",INDEX(Prehrana[],PrehranaZadnjiKonec-PrehranaVrsticaZačetek-J12,4),NA())),NA()) -> 245 | J12: 5
D13: =IFERROR(IF(INDEX(Prehrana[],PrehranaZadnjiKonec-PrehranaVrsticaZačetek-J13,1)<>"",INDEX(Prehrana[],PrehranaZadnjiKonec-PrehranaVrsticaZačetek-J13,1),""),"") -> 2022-12-15 | E13: ČET | F13: =IFERROR((IF(INDEX(Prehrana[],PrehranaZadnjiKonec-PrehranaVrsticaZačetek-J13,1)<>"",INDEX(Prehrana[],PrehranaZadnjiKonec-PrehranaVrsticaZačetek-J13,7),NA())),NA()) -> 5 | G13: =IFERROR((IF(INDEX(Prehrana[],PrehranaZadnjiKonec-PrehranaVrsticaZačetek-J13,1)<>"",INDEX(Prehrana[],PrehranaZadnjiKonec-PrehranaVrsticaZačetek-J13,6),NA())),NA()) -> 43 | H13: =IFERROR((IF(INDEX(Prehrana[],PrehranaZadnjiKonec-PrehranaVrsticaZačetek-J13,1)<>"",INDEX(Prehrana[],PrehranaZadnjiKonec-PrehranaVrsticaZačetek-J13,5),NA())),NA()) -> 11 | I13: =IFERROR((IF(INDEX(Prehrana[],PrehranaZadnjiKonec-PrehranaVrsticaZačetek-J13,1)<>"",INDEX(Prehrana[],PrehranaZadnjiKonec-PrehranaVrsticaZačetek-J13,4),NA())),NA()) -> 247 | J13: 4
D14: =IFERROR(IF(INDEX(Prehrana[],PrehranaZadnjiKonec-PrehranaVrsticaZačetek-J14,1)<>"",INDEX(Prehrana[],PrehranaZadnjiKonec-PrehranaVrsticaZačetek-J14,1),""),"") -> 2022-12-15 | E14: ČET | F14: =IFERROR((IF(INDEX(Prehrana[],PrehranaZadnjiKonec-PrehranaVrsticaZačetek-J14,1)<>"",INDEX(Prehrana[],PrehranaZadnjiKonec-PrehranaVrsticaZačetek-J14,7),NA())),NA()) -> 22 | G14: =IFERROR((IF(INDEX(Prehrana[],PrehranaZadnjiKonec-PrehranaVrsticaZačetek-J14,1)<>"",INDEX(Prehrana[],PrehranaZadnjiKonec-PrehranaVrsticaZačetek-J14,6),NA())),NA()) -> 32 | H14: =IFERROR((IF(INDEX(Prehrana[],PrehranaZadnjiKonec-PrehranaVrsticaZačetek-J14,1)<>"",INDEX(Prehrana[],PrehranaZadnjiKonec-PrehranaVrsticaZačetek-J14,5),NA())),NA()) -> 64 | I14: =IFERROR((IF(INDEX(Prehrana[],PrehranaZadnjiKonec-PrehranaVrsticaZačetek-J14,1)<>"",INDEX(Prehrana[],PrehranaZadnjiKonec-PrehranaVrsticaZačetek-J14,4),NA())),NA()) -> 456 | J14: 3
D15: =IFERROR(IF(INDEX(Prehrana[],PrehranaZadnjiKonec-PrehranaVrsticaZačetek-J15,1)<>"",INDEX(Prehrana[],PrehranaZadnjiKonec-PrehranaVrsticaZačetek-J15,1),""),"") -> 2022-12-16 | E15: PET | F15: =IFERROR((IF(INDEX(Prehrana[],PrehranaZadnjiKonec-PrehranaVrsticaZačetek-J15,1)<>"",INDEX(Prehrana[],PrehranaZadnjiKonec-PrehranaVrsticaZačetek-J15,7),NA())),NA()) -> 10 | G15: =IFERROR((IF(INDEX(Prehrana[],PrehranaZadnjiKonec-PrehranaVrsticaZačetek-J15,1)<>"",INDEX(Prehrana[],PrehranaZadnjiKonec-PrehranaVrsticaZačetek-J15,6),NA())),NA()) -> 2 | H15: =IFERROR((IF(INDEX(Prehrana[],PrehranaZadnjiKonec-PrehranaVrsticaZačetek-J15,1)<>"",INDEX(Prehrana[],PrehranaZadnjiKonec-PrehranaVrsticaZačetek-J15,5),NA())),NA()) -> 10 | I15: =IFERROR((IF(INDEX(Prehrana[],PrehranaZadnjiKonec-PrehranaVrsticaZačetek-J15,1)<>"",INDEX(Prehrana[],PrehranaZadnjiKonec-PrehranaVrsticaZačetek-J15,4),NA())),NA()) -> 10 | J15: 2
D16: =IFERROR(IF(INDEX(Prehrana[],PrehranaZadnjiKonec-PrehranaVrsticaZačetek-J16,1)<>"",INDEX(Prehrana[],PrehranaZadnjiKonec-PrehranaVrsticaZačetek-J16,1),""),"") -> 2022-12-16 | E16: PET | F16: =IFERROR((IF(INDEX(Prehrana[],PrehranaZadnjiKonec-PrehranaVrsticaZačetek-J16,1)<>"",INDEX(Prehrana[],PrehranaZadnjiKonec-PrehranaVrsticaZačetek-J16,7),NA())),NA()) -> 5.51 | G16: =IFERROR((IF(INDEX(Prehrana[],PrehranaZadnjiKonec-PrehranaVrsticaZačetek-J16,1)<>"",INDEX(Prehrana[],PrehranaZadnjiKonec-PrehranaVrsticaZačetek-J16,6),NA())),NA()) -> 8.81 | H16: =IFERROR((IF(INDEX(Prehrana[],PrehranaZadnjiKonec-PrehranaVrsticaZačetek-J16,1)<>"",INDEX(Prehrana[],PrehranaZadnjiKonec-PrehranaVrsticaZačetek-J16,5),NA())),NA()) -> 12.36 | I16: =IFERROR((IF(INDEX(Prehrana[],PrehranaZadnjiKonec-PrehranaVrsticaZačetek-J16,1)<>"",INDEX(Prehrana[],PrehranaZadnjiKonec-PrehranaVrsticaZačetek-J16,4),NA())),NA()) -> 135 | J16: 1
D17: =IFERROR(IF(INDEX(Prehrana[],PrehranaZadnjiKonec-PrehranaVrsticaZačetek-J17,1)<>"",INDEX(Prehrana[],PrehranaZadnjiKonec-PrehranaVrsticaZačetek-J17,1),""),"") -> 2022-12-16 | E17: PET | F17: =IFERROR((IF(INDEX(Prehrana[],PrehranaZadnjiKonec-PrehranaVrsticaZačetek-J17,1)<>"",INDEX(Prehrana[],PrehranaZadnjiKonec-PrehranaVrsticaZačetek-J17,7),NA())),NA()) -> 15 | G17: =IFERROR((IF(INDEX(Prehrana[],PrehranaZadnjiKonec-PrehranaVrsticaZačetek-J17,1)<>"",INDEX(Prehrana[],PrehranaZadnjiKonec-PrehranaVrsticaZačetek-J17,6),NA())),NA()) -> 5.43 | H17: =IFERROR((IF(INDEX(Prehrana[],PrehranaZadnjiKonec-PrehranaVrsticaZačetek-J17,1)<>"",INDEX(Prehrana[],PrehranaZadnjiKonec-PrehranaVrsticaZačetek-J17,5),NA())),NA()) -> 7 | I17: =IFERROR((IF(INDEX(Prehrana[],PrehranaZadnjiKonec-PrehranaVrsticaZačetek-J17,1)<>"",INDEX(Prehrana[],PrehranaZadnjiKonec-PrehranaVrsticaZačetek-J17,4),NA())),NA()) -> 184 | J17: 0
D18: =IFERROR(IF(INDEX(Prehrana[],PrehranaZadnjiKonec-PrehranaVrsticaZačetek-J18,1)<>"",INDEX(Prehrana[],PrehranaZadnjiKonec-PrehranaVrsticaZačetek-J18,1)),"") -> 2022-12-18 | E18: NED | F18: =IFERROR((IF(INDEX(Prehrana[],PrehranaZadnjiKonec-PrehranaVrsticaZačetek-J18,1)<>"",INDEX(Prehrana[],PrehranaZadnjiKonec-PrehranaVrsticaZačetek-J18,7),NA())),NA()) -> 21 | G18: =IFERROR((IF(INDEX(Prehrana[],PrehranaZadnjiKonec-PrehranaVrsticaZačetek-J18,1)<>"",INDEX(Prehrana[],PrehranaZadnjiKonec-PrehranaVrsticaZačetek-J18,6),NA())),NA()) -> 13.5 | H18: =IFERROR((IF(INDEX(Prehrana[],PrehranaZadnjiKonec-PrehranaVrsticaZačetek-J18,1)<>"",INDEX(Prehrana[],PrehranaZadnjiKonec-PrehranaVrsticaZačetek-J18,5),NA())),NA()) -> 62 | I18: =IFERROR((IF(INDEX(Prehrana[],PrehranaZadnjiKonec-PrehranaVrsticaZačetek-J18,1)<>"",INDEX(Prehrana[],PrehranaZadnjiKonec-PrehranaVrsticaZačetek-J18,4),NA())),NA()) -> 477 | J18: -1
B20: PODATKI ANALIZE TELOVADBE NA DIAGRAMU
B22: Začetna vrstica | C22: =ROW(Telovadba[[#Headers],[DATUM]])+1 -> 4 | D22: DATUM | E22: DAN | F22: TRAJANJE (MIN) | G22: ŠTEVILO PORABLJENIH KALORIJ | H22: Št.
B23: Zadnji vnos o telovadbi | C23: =MATCH(9.99E+307,Telovadba[DATUM])+TelovadbaZačetnaVrstica-1 -> 20 | D23: =IFERROR(IF(INDEX(Telovadba[],TelovadbaZadnjiKonec-TelovadbaZačetnaVrstica-H23,1)<>"",INDEX(Telovadba[],TelovadbaZadnjiKonec-TelovadbaZačetnaVrstica-H23,1)),"") -> 2023-01-02 | E23: =UPPER(TEXT(D23,"DDD")) -> PON | F23: =IFERROR((IF(INDEX(Telovadba[],TelovadbaZadnjiKonec-TelovadbaZačetnaVrstica-H23,1)<>"",INDEX(Telovadba[],TelovadbaZadnjiKonec-TelovadbaZačetnaVrstica-H23,2),0)),0) -> 20 | G23: =IFERROR((IF(INDEX(Telovadba[],TelovadbaZadnjiKonec-TelovadbaZačetnaVrstica-H23,2)<>"",INDEX(Telovadba[],TelovadbaZadnjiKonec-TelovadbaZačetnaVrstica-H23,3),0)),0) -> 195 | H23: -1
D24: =IFERROR(IF(INDEX(Telovadba[],TelovadbaZadnjiKonec-TelovadbaZačetnaVrstica-H24,1)<>"",INDEX(Telovadba[],TelovadbaZadnjiKonec-TelovadbaZačetnaVrstica-H24,1)),"") -> 2023-01-01 | E24: NED | F24: =IFERROR((IF(INDEX(Telovadba[],TelovadbaZadnjiKonec-TelovadbaZačetnaVrstica-H24,1)<>"",INDEX(Telovadba[],TelovadbaZadnjiKonec-TelovadbaZačetnaVrstica-H24,2),0)),0) -> 25 | G24: =IFERROR((IF(INDEX(Telovadba[],TelovadbaZadnjiKonec-TelovadbaZačetnaVrstica-H24,2)<>"",INDEX(Telovadba[],TelovadbaZadnjiKonec-TelovadbaZačetnaVrstica-H24,3),0)),0) -> 265 | H24: 0
D25: =IFERROR(IF(INDEX(Telovadba[],TelovadbaZadnjiKonec-TelovadbaZačetnaVrstica-H25,1)<>"",INDEX(Telovadba[],TelovadbaZadnjiKonec-TelovadbaZačetnaVrstica-H25,1)),"") -> 2022-12-31 | E25: SOB | F25: =IFERROR((IF(INDEX(Telovadba[],TelovadbaZadnjiKonec-TelovadbaZačetnaVrstica-H25,1)<>"",INDEX(Telovadba[],TelovadbaZadnjiKonec-TelovadbaZačetnaVrstica-H25,2),0)),0) -> 40 | G25: =IFERROR((IF(INDEX(Telovadba[],TelovadbaZadnjiKonec-TelovadbaZačetnaVrstica-H25,2)<>"",INDEX(Telovadba[],TelovadbaZadnjiKonec-TelovadbaZačetnaVrstica-H25,3),0)),0) -> 290 | H25: 1
D26: =IFERROR(IF(INDEX(Telovadba[],TelovadbaZadnjiKonec-TelovadbaZačetnaVrstica-H26,1)<>"",INDEX(Telovadba[],TelovadbaZadnjiKonec-TelovadbaZačetnaVrstica-H26,1)),"") -> 2022-12-30 | E26: PET | F26: =IFERROR((IF(INDEX(Telovadba[],TelovadbaZadnjiKonec-TelovadbaZačetnaVrstica-H26,1)<>"",INDEX(Telovadba[],TelovadbaZadnjiKonec-TelovadbaZačetnaVrstica-H26,2),0)),0) -> 35 | G26: =IFERROR((IF(INDEX(Telovadba[],TelovadbaZadnjiKonec-TelovadbaZačetnaVrstica-H26,2)<>"",INDEX(Telovadba[],TelovadbaZadnjiKonec-TelovadbaZačetnaVrstica-H26,3),0)),0) -> 320 | H26: 2
D27: =IFERROR(IF(INDEX(Telovadba[],TelovadbaZadnjiKonec-TelovadbaZačetnaVrstica-H27,1)<>"",INDEX(Telovadba[],TelovadbaZadnjiKonec-TelovadbaZačetnaVrstica-H27,1)),"") -> 2022-12-29 | E27: ČET | F27: =IFERROR((IF(INDEX(Telovadba[],TelovadbaZadnjiKonec-TelovadbaZačetnaVrstica-H27,1)<>"",INDEX(Telovadba[],TelovadbaZadnjiKonec-TelovadbaZačetnaVrstica-H27,2),0)),0) -> 45 | G27: =IFERROR((IF(INDEX(Telovadba[],TelovadbaZadnjiKonec-TelovadbaZačetnaVrstica-H27,2)<>"",INDEX(Telovadba[],TelovadbaZadnjiKonec-TelovadbaZačetnaVrstica-H27,3),0)),0) -> 350 | H27: 3
D28: =IFERROR(IF(INDEX(Telovadba[],TelovadbaZadnjiKonec-TelovadbaZačetnaVrstica-H28,1)<>"",INDEX(Telovadba[],TelovadbaZadnjiKonec-TelovadbaZačetnaVrstica-H28,1)),"") -> 2022-12-28 | E28: SRE | F28: =IFERROR((IF(INDEX(Telovadba[],TelovadbaZadnjiKonec-TelovadbaZačetnaVrstica-H28,1)<>"",INDEX(Telovadba[],TelovadbaZadnjiKonec-TelovadbaZačetnaVrstica-H28,2),0)),0) -> 20 | G28: =IFERROR((IF(INDEX(Telovadba[],TelovadbaZadnjiKonec-TelovadbaZačetnaVrstica-H28,2)<>"",INDEX(Telovadba[],TelovadbaZadnjiKonec-TelovadbaZačetnaVrstica-H28,3),0)),0) -> 295 | H28: 4
D29: =IFERROR(IF(INDEX(Telovadba[],TelovadbaZadnjiKonec-TelovadbaZačetnaVrstica-H29,1)<>"",INDEX(Telovadba[],TelovadbaZadnjiKonec-TelovadbaZačetnaVrstica-H29,1)),"") -> 2022-12-27 | E29: TOR | F29: =IFERROR((IF(INDEX(Telovadba[],TelovadbaZadnjiKonec-TelovadbaZačetnaVrstica-H29,1)<>"",INDEX(Telovadba[],TelovadbaZadnjiKonec-TelovadbaZačetnaVrstica-H29,2),0)),0) -> 40 | G29: =IFERROR((IF(INDEX(Telovadba[],TelovadbaZadnjiKonec-TelovadbaZačetnaVrstica-H29,2)<>"",INDEX(Telovadba[],TelovadbaZadnjiKonec-TelovadbaZačetnaVrstica-H29,3),0)),0) -> 270 | H29: 5
D30: =IFERROR(IF(INDEX(Telovadba[],TelovadbaZadnjiKonec-TelovadbaZačetnaVrstica-H30,1)<>"",INDEX(Telovadba[],TelovadbaZadnjiKonec-TelovadbaZačetnaVrstica-H30,1)),"") -> 2022-12-26 | E30: PON | F30: =IFERROR((IF(INDEX(Telovadba[],TelovadbaZadnjiKonec-TelovadbaZačetnaVrstica-H30,1)<>"",INDEX(Telovadba[],TelovadbaZadnjiKonec-TelovadbaZačetnaVrstica-H30,2),0)),0) -> 45 | G30: =IFERROR((IF(INDEX(Telovadba[],TelovadbaZadnjiKonec-TelovadbaZačetnaVrstica-H30,2)<>"",INDEX(Telovadba[],TelovadbaZadnjiKonec-TelovadbaZačetnaVrstica-H30,3),0)),0) -> 325 | H30: 6
D31: =IFERROR(IF(INDEX(Telovadba[],TelovadbaZadnjiKonec-TelovadbaZačetnaVrstica-H31,1)<>"",INDEX(Telovadba[],TelovadbaZadnjiKonec-TelovadbaZačetnaVrstica-H31,1)),"") -> 2022-12-25 | E31: NED | F31: =IFERROR((IF(INDEX(Telovadba[],TelovadbaZadnjiKonec-TelovadbaZačetnaVrstica-H31,1)<>"",INDEX(Telovadba[],TelovadbaZadnjiKonec-TelovadbaZačetnaVrstica-H31,2),0)),0) -> 40 | G31: =IFERROR((IF(INDEX(Telovadba[],TelovadbaZadnjiKonec-TelovadbaZačetnaVrstica-H31,2)<>"",INDEX(Telovadba[],TelovadbaZadnjiKonec-TelovadbaZačetnaVrstica-H31,3),0)),0) -> 175 | H31: 7
D32: =IFERROR(IF(INDEX(Telovadba[],TelovadbaZadnjiKonec-TelovadbaZačetnaVrstica-H32,1)<>"",INDEX(Telovadba[],TelovadbaZadnjiKonec-TelovadbaZačetnaVrstica-H32,1)),"") -> 2022-12-24 | E32: SOB | F32: =IFERROR((IF(INDEX(Telovadba[],TelovadbaZadnjiKonec-TelovadbaZačetnaVrstica-H32,1)<>"",INDEX(Telovadba[],TelovadbaZadnjiKonec-TelovadbaZačetnaVrstica-H32,2),0)),0) -> 30 | G32: =IFERROR((IF(INDEX(Telovadba[],TelovadbaZadnjiKonec-TelovadbaZačetnaVrstica-H32,2)<>"",INDEX(Telovadba[],TelovadbaZadnjiKonec-TelovadbaZačetnaVrstica-H32,3),0)),0) -> 335 | H32: 8
D33: =IFERROR(IF(INDEX(Telovadba[],TelovadbaZadnjiKonec-TelovadbaZačetnaVrstica-H33,1)<>"",INDEX(Telovadba[],TelovadbaZadnjiKonec-TelovadbaZačetnaVrstica-H33,1)),"") -> 2022-12-23 | E33: PET | F33: =IFERROR((IF(INDEX(Telovadba[],TelovadbaZadnjiKonec-TelovadbaZačetnaVrstica-H33,1)<>"",INDEX(Telovadba[],TelovadbaZadnjiKonec-TelovadbaZačetnaVrstica-H33,2),0)),0) -> 40 | G33: =IFERROR((IF(INDEX(Telovadba[],TelovadbaZadnjiKonec-TelovadbaZačetnaVrstica-H33,2)<>"",INDEX(Telovadba[],TelovadbaZadnjiKonec-TelovadbaZačetnaVrstica-H33,3),0)),0) -> 205 | H33: 9
D34: =IFERROR(IF(INDEX(Telovadba[],TelovadbaZadnjiKonec-TelovadbaZačetnaVrstica-H34,1)<>"",INDEX(Telovadba[],TelovadbaZadnjiKonec-TelovadbaZačetnaVrstica-H34,1)),"") -> 2022-12-22 | E34: ČET | F34: =IFERROR((IF(INDEX(Telovadba[],TelovadbaZadnjiKonec-TelovadbaZačetnaVrstica-H34,1)<>"",INDEX(Telovadba[],TelovadbaZadnjiKonec-TelovadbaZačetnaVrstica-H34,2),0)),0) -> 20 | G34: =IFERROR((IF(INDEX(Telovadba[],TelovadbaZadnjiKonec-TelovadbaZačetnaVrstica-H34,2)<>"",INDEX(Telovadba[],TelovadbaZadnjiKonec-TelovadbaZačetnaVrstica-H34,3),0)),0) -> 285 | H34: 10
D35: =IFERROR(IF(INDEX(Telovadba[],TelovadbaZadnjiKonec-TelovadbaZačetnaVrstica-H35,1)<>"",INDEX(Telovadba[],TelovadbaZadnjiKonec-TelovadbaZačetnaVrstica-H35,1)),"") -> 2022-12-21 | E35: SRE | F35: =IFERROR((IF(INDEX(Telovadba[],TelovadbaZadnjiKonec-TelovadbaZačetnaVrstica-H35,1)<>"",INDEX(Telovadba[],TelovadbaZadnjiKonec-TelovadbaZačetnaVrstica-H35,2),0)),0) -> 25 | G35: =IFERROR((IF(INDEX(Telovadba[],TelovadbaZadnjiKonec-TelovadbaZačetnaVrstica-H35,2)<>"",INDEX(Telovadba[],TelovadbaZadnjiKonec-TelovadbaZačetnaVrstica-H35,3),0)),0) -> 125 | H35: 11
D36: =IFERROR(IF(INDEX(Telovadba[],TelovadbaZadnjiKonec-TelovadbaZačetnaVrstica-H36,1)<>"",INDEX(Telovadba[],TelovadbaZadnjiKonec-TelovadbaZačetnaVrstica-H36,1)),"") -> 2022-12-20 | E36: TOR | F36: =IFERROR((IF(INDEX(Telovadba[],TelovadbaZadnjiKonec-TelovadbaZačetnaVrstica-H36,1)<>"",INDEX(Telovadba[],TelovadbaZadnjiKonec-TelovadbaZačetnaVrstica-H36,2),0)),0) -> 30 | G36: =IFERROR((IF(INDEX(Telovadba[],TelovadbaZadnjiKonec-TelovadbaZačetnaVrstica-H36,2)<>"",INDEX(Telovadba[],TelovadbaZadnjiKonec-TelovadbaZačetnaVrstica-H36,3),0)),0) -> 150 | H36: 12
